Cogmind - Beta 13 @@@ ROGUE MODE // 2024.04.01 @ 22:02:23 Player: Bobby43rocks Result: Self-destructed Performance ------------- Evolutions (1) 500 Regions Visited (2) 400 Robots Destroyed (41) 205 Value Destroyed (762) 762 Prototype IDs (0) 0 Alien Tech Used (0) 0 Bonus (24) 24 TOTAL SCORE: 1891 Bonus ------- High Alert Combat Kills 24 Cogmind --------- Core Integrity 231/400 Matter 146/300 Energy 250/250 System Corruption 0% Temperature Cool (0) Movement Walking (360) Ox3 Location -9/Materials Parts ------- > --- POWER (1) -------- Ion Engine > --- PROPULSION (2) --- VSS Leg VSS Leg > --- UTILITY (4) ------ Improved Heat Sink Huge Storage Unit Target Analyzer ECM Suite > --- WEAPON (2) ------- Light Assault Rifle > --- INVENTORY (25) --- Light Ion Engine Light Ion Engine Light Treads Light Treads Aluminum Leg Aluminum Leg Backup Propulsion I Airjet Airjet Small Storage Unit Target Analyzer Target Analyzer Target Analyzer ECM Suite Grenade Launcher Peak State ------------ > --- POWER ------------ Ion Engine > --- PROPULSION ------- Airjet Airjet > --- UTILITY ---------- Improved Heat Sink Huge Storage Unit Target Analyzer ECM Suite > --- WEAPON ----------- Medium Laser Grenade Launcher > --- INVENTORY -------- Ion Engine Light Ion Engine Light Ion Engine Light Treads Aluminum Leg Aluminum Leg Backup Propulsion I Small Storage Unit Target Analyzer Target Analyzer Target Analyzer ECM Suite Grenade Launcher Grenade Launcher Grenade Launcher [Rating: 19] Favorites ----------- Power Ion Engine Engine Ion Engine Propulsion Light Treads Treads Light Treads Leg VSS Leg Hover Unit Backup Propulsion I Utility ECM Suite Device ECM Suite Storage Small Storage Unit Processor Target Analyzer Weapon Medium Laser Energy Gun Medium Laser Ballistic Gun Assault Rifle Launcher Grenade Launcher Build | -11 -10 -9 ------- Run | Yrd Mat Mat Slots Evolved 2 | . . 2 Power . | . . . Propulsion . | . . . Utility 2 | . . 2 Weapon . | . . . Parts Attached 28 | 6 10 12 Power 4 | 1 2 1 Engine 4 | 1 2 1 Core . | . . . Reactor . | . . . Propulsion 8 | 2 2 4 Treads 4 | 2 2 . Leg 2 | . . 2 Wheel . | . . . Hover 2 | . . 2 Flight . | . . . Utility 6 | 1 2 3 Device 3 | . 1 2 Storage 2 | 1 1 . Processor 1 | . . 1 Hackware . | . . . Protection . | . . . Artifact . | . . . Weapon 10 | 2 4 4 Energy Gun 3 | 1 2 . Energy Cannon . | . . . Ballistic Gun 3 | 1 1 1 Ballistic Cannon . | . . . Launcher 4 | . 1 3 Special Weapon . | . . . Impact Weapon . | . . . Slashing Weapon . | . . . Piercing Weapon . | . . . Special Melee Weapon . | . . . Unidentified Prototypes . | . . . Parts Lost 8 | . 3 5 Power 1 | . . 1 Propulsion 1 | . 1 . Utility . | . . . Weapon 6 | . 2 4 Highest Loss Streak 2 | . 2 2 To Critical Strikes . | . . . Average Slot Usage (%) 94 | . 93 97 Engine 12 | . 13 10 Treads 13 | . 18 2 Leg 5 | . . 15 Hover 5 | . 7 3 Device 15 | . 11 23 Storage 12 | . 14 11 Processor 3 | . . 9 Energy Gun 12 | . 15 5 Ballistic Gun 2 | . 2 2 Launcher 10 | . 8 13 Naked Turns . | . . . Heaviest Build 95 | 14 92 95 Greatest Support 40 | 40 40 24 Greatest Overweight (x) 11 | . 4 11 Average Overweight (x) . | . . 3 Largest Inventory Capacity 25 | 8 25 25 Average Capacity 14 | 7 10 25 Most Carried 17 | 4 11 17 Average Carried 9 | 2 7 14 Final Capacity 25 | 8 25 25 Final Carried 15 | 4 11 15 Class Distribution -------------------- 100% | Mutant Dominant Class ---------------- Mutant | -10/Materials Mutant | -9/Materials Resources | -11 -10 -9 ----------- Run | Yrd Mat Mat Matter Collected 651 | 230 120 301 Remotely . | . . . Salvage Created 780 | . 323 457 Parts 74 | . 23 51 Haulers Intercepted . | . . . Recyclers Shooed 2 | . . 2 Parts Field Recycled . | . . . Retrieved Matter . | . . . Parts Self-Destructed . | . . . Prevented . | . . . Kills | -11 -10 -9 ------- Run | Yrd Mat Mat Combat Hostiles Destroyed 27 | . 9 18 Guns 7 | . 5 2 AOE 19 | . 3 16 Classes Destroyed 8 | . 6 2 Worker 6 | . 2 4 Builder 3 | . 1 2 Recycler 2 | . 1 1 Operator 1 | . . 1 Watcher 2 | . 1 1 Swarmer 13 | . 5 8 Grunt 13 | . 4 9 Brawler 1 | . . 1 Best Kill Streak 6 | . 6 5 Combat Bots Only 4 | . 3 4 Max Kills in Single Turn 4 | . 4 3 Gunslinging . | . . . Exploded 3 | . 1 3 Melee . | . . . Uniques/NPCs Destroyed . | . . . Combat | -11 -10 -9 -------- Run | Yrd Mat Mat Hostile Shots Fired 165 | . 88 77 Missed 45 | . 21 24 Damage Taken 1322 | . 694 628 Core 344 | . 175 169 Absorbed by Shields . | . . . Core Remaining (%) 65 | 100 30 . Volleys Fired 58 | . 32 26 Largest 2 | . 2 2 Hottest 100 | . 100 80 Shots Fired 95 | . 57 38 Gun 60 | . 49 11 Cannon . | . . . Launcher 35 | . 8 27 Special . | . . . Kinetic 15 | . 7 8 Thermal 45 | . 42 3 Explosive 35 | . 8 27 Electromagnetic . | . . . Robot Hit Streak 11 | . 6 11 Robot Miss Streak 5 | . 5 2 Penetration Max . | . . . Secondary Targets 1 | . 1 . Max Gunslinging Chain 1 | . 1 . Shots Hit Robots 50 | . 29 21 Core Hits 67 | . 23 44 Critical Kills . | . . . Critical Parts Destroyed . | . . . Critical Strikes . | . . . Melee Attacks . | . . . Impact . | . . . Slashing . | . . . Piercing . | . . . Sneak Attacks . | . . . Combat Hostiles . | . . . Follow-up Attacks . | . . . Damage Inflicted 2403 | 1 728 1674 Guns 417 | . 356 61 Cannons . | . . . Explosions 1977 | . 364 1613 Melee . | . . . Ramming 9 | 1 8 . Kinetic 118 | . 69 49 Thermal 299 | . 287 12 Explosive 1977 | . 364 1613 Electromagnetic . | . . . Impact . | . . . Slashing . | . . . Piercing . | . . . Highest Corruption . | . . . Average Corruption . | . . . Corruption Purged . | . . . Corruption Blocked . | . . . Overload Shots . | . . . Overflow Damage 52 | . 6 46 Projectiles . | . . . Explosions 52 | . 6 46 Melee . | . . . Knockbacks 1 | 1 . . Impact 1 | 1 . . Kinetic . | . . . Secondary . | . . . Self-Inflicted Damage 140 | . 28 112 Shots 6 | . 1 5 Rammed 4 | 1 3 . Targets Rammed 4 | 1 3 . Kicked . | . . . Crushed . | . . . Highest Temperature 418 | . 418 . Average Temperature 142 | . 142 . Received Heat Transfer 360 | . 186 174 Effects 1 | . 1 . Shutdowns 1 | . 1 . Siege Activations . | . . . Robots Corrupted . | . . . Combat Hostiles . | . . . Parts Fried . | . . . Impact Corruptions . | . . . Robots Melted 1 | . 1 . Combat Hostiles 1 | . 1 . Parts Melted 2 | . 2 . Heat Transferred 888 | . 851 37 Parts Sabotaged . | . . . Parts Stolen . | . . . Parts Stripped . | . . . Power Chain Reactions . | . . . Alert | -11 -10 -9 ------- Run | Yrd Mat Mat Peak Influence 437 | . 199 437 Initial 52 | . . 52 Average 110 | . 90 186 Maximum Alert Level 2 | . . 2 Low Security (%) 85 | 100 100 52 Level 1 12 | . . 39 Level 2 2 | . . 8 Level 3 . | . . . Level 4 . | . . . Level 5 . | . . . High Security . | . . . Max Security . | . . . Squads Dispatched 5 | . 1 4 Investigation . | . . . Extermination . | . . . Reinforcement 5 | . 1 4 Assault . | . . . Garrison . | . . . Intercept . | . . . Searches Triggered . | . . . Construction Impeded 2 | . . 2 Haulers Reinforced . | . . . Active Scanning Responses . | . . . Cargo Convoy Interrupts . | . . . Stealth | -11 -10 -9 --------- Run | Yrd Mat Mat Distress Signals 3 | . . 3 Communications Jammed . | . . . Distress Signals . | . . . Times Spotted 41 | . 15 26 Peak Tracking Total 5 | . 4 5 Tactical Retreats 3 | . 1 2 Traps | -11 -10 -9 ------- Run | Yrd Mat Mat Traps Triggered 2 | . 2 . Indirectly . | . . . Trap Hack Attempts . | . . . Triggered . | . . . Disarmed . | . . . Reprogrammed . | . . . Reused . | . . . Traps Extracted . | . . . Installed . | . . . Triggered . | . . . Machines | -11 -10 -9 ---------- Run | Yrd Mat Mat Machines Disabled 6 | . 3 3 Max in Single Turn 1 | . 1 1 Machines Repaired . | . . . Machines Dismantled . | . . . Machines Sabotaged . | . . . Overloaded Fab Kills . | . . . Hacking | -11 -10 -9 --------- Run | Yrd Mat Mat Machines Accessed 3 | . 3 . Terminals 2 | . 2 . Fabricators . | . . . Repair Stations 1 | . 1 . Recycling Units . | . . . Scanalyzers . | . . . Garrison Access . | . . . Total Hacks 8 | . 8 . Successful 6 | . 6 . Failed 2 | . 2 . Catastrophic . | . . . Database Lockouts . | . . . Manual . | . . . Terminals 6 | . 6 . Fabricators . | . . . Repair Stations 2 | . 2 . Recycling Units . | . . . Scanalyzers . | . . . Garrison Access . | . . . Terminal Hacks 4 | . 4 . Emergency Access Points 1 | . 1 . Locate Traps 1 | . 1 . Registered Components 1 | . 1 . Zone Layout 1 | . 1 . Fabricator Hacks . | . . . Repair Station Hacks 2 | . 2 . Scan Component 1 | . 1 . Refit 1 | . 1 . Recycling Unit Hacks . | . . . Scanalyzer . | . . . Garrison Access Hacks . | . . . Unauthorized Hacks . | . . . Terminals . | . . . Fabricators . | . . . Repair Stations . | . . . Recycling Units . | . . . Scanalyzers . | . . . Garrison Access . | . . . Data Cores Recovered . | . . . Used . | . . . Hacking Detections 3 | . 3 . Full Trace Events 1 | . 1 . Feedback Events . | . . . Feedback Blocked . | . . . Robot Schematics Acquired . | . . . Robots Built . | . . . Authchips . | . . . Time . | . . . Total Robot Build Rating . | . . . Part Schematics Acquired . | . . . Parts Built . | . . . Authchips . | . . . Time . | . . . Total Part Build Rating . | . . . Parts Repaired . | . . . Time . | . . . Parts Recycled . | . . . Recycled Matter . | . . . Retrieved Matter . | . . . Retrieved Components . | . . . Parts Scanalyzed . | . . . Part Schematics Acquired . | . . . Parts Damaged . | . . . Bothacking | -11 -10 -9 ------------ Run | Yrd Mat Mat Used RIF Installer . | . . . Robots Hacked . | . . . Non-combat . | . . . Combat . | . . . Robot Hacks Applied . | . . . Relay Couplers Released . | . . . Fabnet Peak Effective % . | . . . Robots Rewired . | . . . Allies Hacked . | . . . Hacks Repelled . | . . . Allies | -11 -10 -9 -------- Run | Yrd Mat Mat Total Allies . | . . . Largest Group . | . . . Highest-Rated Group . | . . . Highest-Rated Ally . | . . . Total Orders . | . . . Ally Attacks . | . . . Total Damage . | . . . Kills . | . . . Allies Corrupted . | . . . Allies Melted . | . . . Intel | -11 -10 -9 ------- Run | Yrd Mat Mat Robot Analysis Total . | . . . Derelict Logs Recovered . | . . . Drone Launches . | . . . Drone Recoveries . | . . . Exploration | -11 -10 -9 ------------- Run | Yrd Mat Mat Turns Passed 1891 | 190 1119 582 Spaces Moved 781 | 112 543 126 Core 7 | 2 5 . Treads 662 | 110 529 23 Legs 93 | . . 93 Wheels . | . . . Hover 19 | . 9 10 Flight . | . . . Fastest Speed 50 | 50 100 356 Average Speed 213 | 158 184 390 Slowest Speed 740 | 160 480 740 Overloaded Moves . | . . . Propulsion Burnouts . | . . . Robots Hopped . | . . . Cave-ins Triggered . | . . . Exploration Rate (%) 27 | 5 61 15 Regions Visited 2 Branch Regions . Pre-discovered Areas . | . . . Known Exits Taken . | . . . Unknown Exits Taken 2 | 1 1 . Scrap Searched . | . . . Spaces Dug . | . . . Terrain Destroyed 130 | . 37 93 Melee . | . . . Projectile . | . . . AOE 130 | . 37 93 Terrain Rammed . | . . . Walls Destroyed . | . . . Machines Disabled . | . . . Actions | -11 -10 -9 --------- Run | Yrd Mat Mat Total 903 | 122 605 176 Wait 10 | . 7 3 Move 779 | 111 542 126 Hop . | . . . Pick Up 23 | 4 10 9 Fast Attach 12 | 6 6 . Attach 8 | . 2 6 Detach . | . . . Swap 8 | . 2 6 Drop 1 | . 1 . Fire 58 | . 32 26 Melee . | . . . Ram . | . . . Kick . | . . . Crush 4 | 1 3 . Escape Stasis . | . . . Rewire . | . . . Trap . | . . . Miscellaneous . | . . . Route ------- -11/Scrapyard -10/Materials (discovered 2 exits: [*Mat] / [*Min]) -9/Materials History --------- Turn | Location | Event 58 | -11/Scrapyard | Discovered new exit (range 16) 191 | -11/Scrapyard | Entered Materials 306 | -10/Materials | Build established: Mutant 674 | -10/Materials | Core integrity fell below 50% 697 | -10/Materials | Discovered new exit (range 15) 1098 | -10/Materials | Discovered new exit (range 16) 1310 | -10/Materials | Entered another Materials area 1310 | -9/Materials | Evolved 2 slots: Utility x2 1892 | -9/Materials | Self-destructed Last Messages --------------- K-01 Serf collects debris. U-05 Engineer lays Concrete. K-01 Serf collects debris. U-05 Engineer lays Concrete. U-05 Engineer builds a Wall. K-01 Serf collects debris. U-05 Engineer lays Concrete. K-01 Serf collects debris. U-05 Engineer lays Concrete. K-01 Serf collects debris. U-05 Engineer builds a Wall. K-01 Serf collects debris. U-05 Engineer lays Concrete. K-01 Serf collects debris. U-05 Engineer lays Concrete. K-01 Serf collects debris. U-05 Engineer lays Concrete. Grenade Launcher destroyed. U-05 Engineer lays Concrete. K-01 Serf collects debris. Map ----- +----------------------------------------------------+ | ?????????????????????????????????????????????????? | | ?????????????????????????????????????????????????? | | ?????????????????????????????????????????????????? | | ?????????????????????????????????????????????????? | | ?????????????????????????????? ??????????????????? | | ????????????????????????????? ??????????????????? | | ????????????????????????????? #??????????????????? | | ????????????????????????????? #??????????????????? | | ???????????????????? ??######+#??????????????????? | | ???????????????????# ?# #?????????? ?????? | | ???????????????????# # #??###??### #????? | | ?????????????????### # #?# ?? /= ????? | | ????????????????"" # #?# != #???? | | ????????????????"" #?# ^""" +???? | | ?????????????? """ ### "R ^ #???? | | ??????????????? + # ## """ #???? | | ???????????????? # ## ##### | | ????????????????? =! ! #?# | | ???????????????????# =%%=[ ### ]! ? | | ???????????????????# *=* ## =! #?? | | ???????????????????# "" kkk ! #?? | | ???????????????????# "" g # # """" #?? | | ????????????######## "" g= ### """" #?? | | ????????????# * """" ### | | ????????????+ % # # | | ????????????# @ ! # # | | ????????????# ####+# ##########+######## # # | | ????????????# ???? ## # #?# =### | | ?????????????????+ ### T #### | | ?????????????????# ## ## | | ?????????????????# """ # """ ### | | ?????????????????# """ # ## """"" #?## ### | | ?????????????????# """ ""?##?# """"" #??# #?? | | ???????????????????""" T"????# ! #??# #?? | | ???????????????????? ""????# #??# #?? | | ???????????????????? ??????###########??# #?? | | ????????????????????###????????????????????# #?? | | ???????????????????????????????????????????# #?? | | ??????????????????????????????????????????? ?? | | ??????????????????????????????????????????? ?? | | ?????????????????????????????????????????? ?? | | ??????????????????????????????????????????# ?? | | ??????????????????????????????????????????# ?? | | ??????????????????????????????????????????###+##?? | | ?????????????????????????????????????????????????? | | ?????????????????????????????????????????????????? | | ?????????????????????????????????????????????????? | | ?????????????????????????????????????????????????? | | ?????????????????????????????????????????????????? | | ?????????????????????????????????????????????????? | +----------------------------------------------------+ Best States ------------- Heat Dissipation 42 Energy Generation 10 Energy Capacity 250 Matter Stores 300 Matter Capacity 300 Sight Range 16 Terrain Scan Density 10 ECM Strength 2 Evasion (%) 40 Target Analysis 5 Recoil Reduction 2 Item Schematics ----------------- None Robot Schematics ------------------ None Fabricated ------------ Nothing Alien Tech Used ----------------- None Achievements -------------- None Challenges ------------ None Game ------ Seed EtherialMetafieldTendrils Manual? 0 Play Time 00:13:31 Cumulative 4.6 hours Start 2024.04.01 @ 21:52:23 End 2024.04.01 @ 22:02:23 Sessions 1 Manual Loads 0 Difficulty Rogue Special Mode None Game No. 13 Rogue 13 Adventurer 0 Explorer 0 Win Type - Total 0 Types 0/0/0/0/0/0/0/0/0 Lore% 1 Gallery% 11 Achievement% 10 Wizard Run 0 Options --------- Layout 1 ASCII 0 Keyboard 1 Movement Arrows Keybinds 0 Fullscreen 2 Font 24/Tallcaps Map View 50x35 Zoom Use 0% Tactical HUD 0 Map Filters NONE Filters NONE Steam 1 RUN: 9292cbb0-3136-4bd1-bc9e-4ba9c6fce256